[Event "Klatovy Open-A 2024"]
[Site "Klatovy"]
[Date "2024.07.06"]
[Round "8.1"]
[White "Straka, Vojtech"]
[Black "Slovak, Kilian"]
[Result "1-0"]
[ECO "A36"]
[WhiteElo "2436"]
[BlackElo "2271"]
[Annotator "TA"]
[PlyCount "87"]
[EventDate "2024.06.21"]
[EventType "swiss"]
[EventCountry "CZE"]
[SourceTitle "playchess.com"]
[Source "ChessBase"]
[SourceQuality "1"]
[TimeControl "40/7200:0"]

{[%evp 21,87,5,2,-2,7,15,26,24,31,25,28,20,26,20,22,17,14,-20,25,18,107,128,126,118,117,126,137,136,127,134,127,117,153,141,134,141,153,135,160,143,236,200,210,225,267,277,352,374,529,528,535,562,586,565,716,728,925,843,940,934,5895,5719,6320,6318,29988,760,29989,759]} 1. c4 {[%emt 0:00:00]} Nf6 {[%emt 0:00:00]} 2. Nc3 {[%emt 0:00:00]} g6 {[%emt 0:00:00]} 3. g3 {[%emt 0:00:00]} Bg7 {[%emt 0:00:00]} 4. Bg2 {[%emt 0:00:00]} O-O {[%emt 0:00:00]} 5. e4 {[%emt 0:00:00]} c5 {[%emt 0:00:00]} 6. Nge2 {[%emt 0:00:00]} Nc6 {[%emt 0:00:00]} 7. d3 {[%emt 0:00:00]} d6 {[%emt 0:00:00]} 8. O-O {[%emt 0:01:06]} Bd7 {[%emt 0:00:00]} 9. h3 {[%emt 0:00:39]} a6 {[%emt 0:00:00]} 10. a4 {[%emt 0:06:41]} Rb8 {[%emt 0:00:00]} 11. Be3 {[%emt 0:07:05]} Ne8 {[%emt 0:00:00][%cal Bf6e8,Be8c7,Bc7e6][%mdl 32]} 12. Kh2 {[%emt 0:00:11]} Nc7 {[%emt 0:02:02]} 13. d4 {[%emt 0:06:03]} cxd4 {[%emt 0:00:38]} 14. Nxd4 {[%emt 0:00:00] White has an edge.} Ne6 {[%emt 0:02:02]} 15. Nde2 {[%emt 0:03:35]} Na5 {[%emt 0:03:40][%cal Bc6a5,Ba5c4,Bc4b2][%mdl 32]} 16. b3 {[%emt 0:23:20][%cal Bb2b3,Bb3b4][%mdl 32]} b5 {[%emt 0:01:12]} 17. cxb5 {[%emt 0:09:24]} axb5 {[%emt 0:00:37] ...b4 would now be deadly.} 18. b4 {[%emt 0:00:00]} Nc4 {[%emt 0:00:55]} 19. Ba7 {[%emt 0:04:17]} Rb7 {[%emt 0:39:16]} (19... bxa4 $5 20. Bxb8 Qxb8 $14) 20. axb5 {[%emt 0:00:31]} Rxb5 {[%emt 0:02:06]} (20... Bxb5 $11 21. e5 Qd7) 21. Nxb5 $16 {[%emt 0:00:41] White leaves nothing to chance now.} Bxb5 {[%emt 0:11:15]} 22. Ra2 {[%emt 0:04:37]} Nb2 {[%emt 0:13:24] Prevents Qd3.} 23. Qd2 {[%emt 0:02:28]} Qd7 {[%emt 0:00:00]} 24. Be3 {[%emt 0:11:03]} Nc4 {[%emt 0:01:21]} 25. Qc1 {[%emt 0:00:00]} Rc8 {[%emt 0:01:21][%cal Oc4b2]} 26. Rc2 {[%emt 0:00:36]} Rc7 {[%emt 0:00:00] ...Nxe3 is the strong threat.} 27. Re1 $1 {[%emt 0:03:47]} Qc8 {[%emt 0:03:17]} 28. Nf4 $1 {[%emt 0:07:16]} Nxf4 {[%emt 0:02:30]} 29. Bxf4 {[%emt 0:00:01][%cal Oe4e5] Black must now prevent e5!} Ba4 {[%emt 0:00:00]} 30. Rce2 {[%emt 0:00:49]} Bb5 {[%emt 0:01:17]} (30... Bd7 $16 31. Bg5 Ne5) 31. Ra2 $1 $18 {[%emt 0:02:10][%cal Oe4e5,Be2a2,Ba2c2,Bc2c4,Bc4c8][%mdl 32]} Ne5 {[%emt 0:08:21] [#]} 32. Qe3 {[%emt 0:01:23]} h5 {[%emt 0:05:14]} 33. Rc1 {[%emt 0:01:55]} Nc4 {[%emt 0:00:00]} 34. Qb3 {[%emt 0:00:15]} Kh7 {[%emt 0:00:02]} (34... Be5 {keeps fighting.} 35. Bxe5 Nxe5 36. Rxc7 Qxc7) 35. Rac2 {[%emt 0:06:19]} e5 {[%emt 0:09:06]} 36. Bg5 {[%emt 0:01:35]} f6 {[%emt 0:00:00][%cal Bf7f6,Bf6g5,Bg5g4][%mdl 32]} 37. Bf1 {[%emt 0:02:33][%cal Rf1c4]} fxg5 {[%emt 0:01:50]} 38. Bxc4 {[%emt 0:00:00]} Rxc4 {[%emt 0:00:00]} 39. Rxc4 {[%emt 0:00:00]} Qf8 {[%emt 0:00:00] [#]} 40. Kg2 $1 {[%emt 0:00:10] Threatens to win with Rc8.} h4 {[%emt 0:00:00]} (40... Qa8 41. Rc7) 41. Rc8 {[%emt 2:00:46]} Qf6 {[%emt 1:58:49]} 42. R1c7 {[%emt 0:01:17]} g4 {[%emt 0:00:06]} 43. Qg8+ {[%emt 0:00:57]} Kh6 {[%emt 0:00:00] [#]} 44. Qxg7+ $1 {[%emt 0:00:00] Weighted Error Value: White=0.02 (flawless) /Black=0.42.  Mistake:       	---       	Black=3      Inaccurate:     	White=1     	Black=2      OK:         	White=15    	Black=10     Best:        	White=4     	Black=2      Strong:       	White=2     	---} 1-0

[Event "Klatovy Open-A 2024"]
[Site "Klatovy"]
[Date "2024.07.06"]
[Round "8.3"]
[White "Skypala, Ondrej"]
[Black "Strnad, Jakub"]
[Result "1-0"]
[ECO "A14"]
[WhiteElo "2223"]
[BlackElo "1942"]
[Annotator "TA"]
[PlyCount "55"]
[EventDate "2024.06.21"]
[EventType "swiss"]
[EventCountry "CZE"]
[SourceTitle "playchess.com"]
[Source "ChessBase"]
[SourceQuality "1"]
[TimeControl "40/7200:0"]

{[%evp 9,55,22,32,45,72,56,64,69,51,48,195,193,204,192,287,282,259,120,354,364,371,373,370,376,373,368,621,557,621,592,563,401,511,470,511,498,504,506,1339,1320,1399,1443,1443,1421,1798,1789,1799,1442]} 1. c4 {[%emt 0:03:59]} e6 {[%emt 0:00:00]} 2. Nf3 {[%emt 0:00:00]} d5 {[%emt 0:00:00]} 3. g3 {[%emt 0:00:00]} Nf6 {[%emt 0:00:00]} 4. Bg2 {[%emt 0:00:00]} Be7 {[%emt 0:00:30]} 5. O-O {[%emt 0:00:00]} dxc4 {[%emt 0:00:00]} 6. Na3 {[%emt 0:00:00][%cal Bb1a3,Ba3c4,Bc4a5,Ba5b3][%mdl 32]} a6 {[%emt 0:05:48]} 7. Nxc4 {[%emt 0:00:00]} b5 {[%emt 0:00:00]} 8. Nfe5 {[%emt 0:00:59] White is slightly better.} Nd5 {[%emt 0:02:23]} 9. Na5 {[%emt 0:00:22]} Qd6 {[%emt 0:01:22]} (9... c5 $14 10. Nac6 Nxc6 11. Nxc6 Qc7 12. Nxe7 Qxe7) 10. d4 $18 {[%emt 0:00:00]} Qb6 {[%emt 0:01:22]} 11. Nb3 {[%emt 0:00:09]} Bb7 {[%emt 0:01:02]} (11... a5 {was worth a try.} 12. e4 Nf6) 12. e4 {[%emt 0:07:27]} Nf6 {[%emt 0:03:36][%cal Oe8g8]} 13. Qc2 {[%emt 0:00:00]} (13. Be3 $18) 13... Nc6 $2 {[%emt 0:02:03] [#]} (13... a5 $16) 14. Be3 $1 {[%emt 0:02:37] d5 would now be deadly.} Nb4 {[%emt 0:08:08]} 15. Qe2 {[%emt 0:00:37]} Bxe4 {[%emt 0:05:58]} 16. Bxe4 {[%emt 0:00:00]} Nxe4 {[%emt 0:00:00]} 17. Qf3 {[%emt 0:00:00][%csl LRe4,LRf7] Against Bf6} f5 {[%emt 0:04:26]} (17... O-O 18. Qxe4 Rad8) 18. Qh5+ {[%emt 0:00:00]} g6 {[%emt 0:00:00]} 19. Nxg6 {[%emt 0:00:00]} Nf6 {[%emt 0:00:00]} 20. Qf3 {[%emt 0:00:00]} (20. Nxh8+ $2 {perishes.} Nxh5 21. Rac1 Nxa2 $19) 20... hxg6 {[%emt 0:01:53]} 21. Qxa8+ {[%emt 0:00:00] White is clearly winning.} Bd8 {[%emt 0:00:00] [#]} 22. d5 $1 {[%emt 0:00:00][%cal Bd4d5,Bd5e6][%mdl 32]} Qd6 {[%emt 0:00:40]} 23. dxe6 {[%emt 0:00:00] aiming for Rad1.} Ne4 {[%emt 0:19:27]} (23... Qc6 $142 24. Qxc6+ Nxc6) 24. Rad1 {[%emt 0:00:24]} Nd3 {[%emt 0:00:36][%cal Bb4d3,Bd3f4,Bf4h3][%mdl 32] [#]} 25. Bf4 $1 {[%emt 0:00:12]} Nxf4 {[%emt 0:11:53]} (25... Qxe6 26. Rxd3) 26. Rxd6 {[%emt 0:00:00][%csl Gd6][%cal Ra8d8]} Nh3+ {[%emt 0:00:00]} 27. Kg2 {[%emt 0:00:00][%csl Gd6][%cal Ra8d8]} cxd6 {[%emt 0:00:00]} 28. Qb7 {[%emt 0:00:00] Black did not feel at home in the position after the opening.   Weighted Error Value: White=0.21 (precise) /Black=0.64.  Loses game:     	---       	Black=1      Mistake:       	White=1     	Black=4      Inaccurate:     	---       	Black=1      OK:         	White=7     	Black=7      Best:        	White=4     	Black=2      Strong:       	White=1     	---        Brilliant:      	White=1     	---} 1-0